[Event "CCT Airthings Masters Play-In 2023"]
[Site "Online"]
[Date "2023.02.03"]
[Round "3"]
[White "temiksmozg"]
[Black "EvgenyT"]
[Result "0-1"]
[ECO "C47"]
[WhiteElo "2301"]
[BlackElo "2542"]
[Annotator "TA"]
[PlyCount "70"]
[EventDate "2023.02.03"]
[EventType "swiss"]
[EventCountry "NET"]
[SourceTitle "playchess.com"]
[Source "ChessBase"]
[SourceQuality "1"]
[TimeControl "600+2"]

{[%evp 12,70,35,0,0,0,4,-8,-15,-26,-11,-34,-20,-34,0,-12,0,0,7,14,2,-61,-10,-59,80,-119,-125,-110,-75,-196,-189,-211,-199,-204,-154,-122,-96,-114,-90,-95,-47,-44,-38,-48,-41,-54,-25,-33,-14,-46,0,-640,-645,-5074,-3618,-29999,-29982,-29982,-29983,-29980,-29981]} 1. e4 {[%emt 0:00:03]} e5 {[%emt 0:00:05]} 2. Nf3 {[%emt 0:00:03]} Nc6 {[%emt 0:00:01]} 3. Nc3 {[%emt 0:00:41]} Nf6 {[%emt 0:00:05]} 4. d4 {[%emt 0:00:02]} exd4 {[%emt 0:00:02]} 5. Nxd4 {[%emt 0:00:00]} Bc5 {[%emt 0:00:15]} 6. Be3 {[%emt 0:00:10]} Bb6 {[%emt 0:00:33]} 7. Nxc6 {[%emt 0:00:28]} bxc6 {[%emt 0:00:03] C47: Scotch Four Knights and Four Knights with 4 g3.} 8. e5 {[%emt 0:00:01]} Bxe3 {[%emt 0:00:39]} 9. exf6 {[%emt 0:00:12]} (9. fxe3 $5 {[%cal Re5f6]} Nd5 10. Nxd5 cxd5 11. Qxd5 Qh4+ 12. Kd1 $11 (12. g3 Qb4+ 13. Qd2 Qxb2 $11)) 9... Bh6 {[%emt 0:00:01] The position is equal.} 10. fxg7 {[%emt 0:00:24]} Bxg7 {[%emt 0:00:06]} 11. Bd3 {[%emt 0:00:21]} Qe7+ {[%emt 0:00:10] [#]} 12. Kf1 $146 {[%emt 0:00:07]} (12. Qe2 {simplifies} Qxe2+ 13. Bxe2 Rb8 14. O-O-O) ({Predecessor:} 12. Ne2 Bb7 13. Rb1 Bc3+ 14. Kf1 Be5 15. Ng3 d5 16. Qh5 Bc3 17. Ne2 Qe5 18. Qf3 {½-½ Rojas Keim,L (2390)-Lugo,B (2440) Quito Copa Saeta 1st 1997 (1)}) 12... d5 {[%emt 0:01:07]} (12... Rb8 $5 {[%cal Rb8b2]} 13. Qh5 (13. Qg4 O-O $17) 13... d6 $15) 13. Qh5 $1 {[%emt 0:01:34]} Kf8 {[%emt 0:00:02]} 14. Re1 {[%emt 0:00:07]} (14. Bxh7 $2 Qb4 15. Re1 Bg4 $19) 14... Qf6 {[%emt 0:00:30]} 15. g3 {[%emt 0:01:37]} (15. Bxh7 $2 Bd7 16. h3 Bh6 $17) 15... Rb8 $132 {[%emt 0:00:08][%mdl 2048] Black is not keeping still} 16. Na4 {[%emt 0:00:45]} (16. Nd1 $11) 16... Rb4 $15 {[%emt 0:00:29]} 17. Nc5 {[%emt 0:00:28]} (17. Qe2 $1 $11 Bh6 18. Nc5) 17... Qd6 {[%emt 0:00:20] [#]} (17... Bg4 $2 18. Qxg4 $18) (17... Rxb2 $15 {stays ahead.} 18. Kg2 (18. Qe2 Qe5 $17) 18... Qh6 19. Qxh6 (19. Qe2 $2 Bh3+ 20. Kg1 Bd4 $19) 19... Bxh6) 18. Nb3 $2 {[%emt 0:01:06]} (18. Bf5 $1 $16) 18... Bg4 $17 {[%emt 0:00:12] Dancing on a razor blade.} 19. Qg5 {[%emt 0:00:24]} Bxb2 {[%emt 0:00:45]} 20. a3 {[%emt 0:00:33]} h6 $19 {[%emt 0:00:52]} ({Not} 20... Bxa3 21. h3 (21. Qe3 $2 Bh3+ 22. Kg1 Bb2 $19) 21... Bc8 22. Ra1 $17 (22. Qe3 Bb2 $17)) 21. Qe3 {[%emt 0:00:18]} Bh3+ {[%emt 0:00:08] This pair of bishops is nice.} ({Inferior is} 21... Rb8 22. Kg2 $17 (22. h3 d4 $17)) 22. Kg1 {[%emt 0:00:05]} Rb8 {[%emt 0:00:04] Active counter play!} 23. Bf1 {[%emt 0:00:35]} Bg4 {[%emt 0:00:48]} 24. h3 {[%emt 0:00:13]} Bd7 {[%emt 0:00:19]} 25. Nc5 {[%emt 0:00:11]} Re8 {[%emt 0:00:10]} ({Black should play} 25... Bc8 $17 {Threatens to win with ...d4.} 26. Na4 Bf6 27. Qxa7 Rb7) 26. Nxd7+ $15 {[%emt 0:00:01]} Qxd7 {[%emt 0:00:01]} 27. Qc5+ {[%emt 0:00:17]} Kg7 {[%emt 0:00:04]} 28. Rb1 {[%emt 0:00:01]} Bf6 {[%emt 0:00:24]} 29. Kg2 {[%emt 0:00:00]} Re4 {[%emt 0:00:40]} 30. Bd3 {[%emt 0:00:07]} Ra4 {[%emt 0:00:02]} (30... Bd4 $15 31. Qa5 Re7) 31. Rb3 $2 {[%emt 0:00:04][%mdl 8192]} (31. Rb4 $11 Rxb4 32. Qxb4) 31... Bd4 $19 {[%emt 0:00:03]} 32. Bf5 {[%emt 0:00:05]} Qxf5 {[%emt 0:00:04][%csl Gd4][%cal Rf5f2] [#]} 33. Qxc6 {[%emt 0:00:00]} Rc4 {[%emt 0:00:04][%csl Gd4][%cal Rf5f2] Black mates.} 34. Rf3 {[%emt 0:00:04]} Qxf3+ {[%emt 0:00:02]} 35. Kxf3 {[%emt 0:00:00]} Rxc6 {[%emt 0:00:01] Weighted Error Value: White=0.76/Black=0.24 (precise)} 0-1

[Event "CCT Airthings Masters Play-In 2023"]
[Site "Online"]
[Date "2023.02.03"]
[Round "3"]
[White "Rodalquilar"]
[Black "shimastream"]
[Result "1-0"]
[ECO "D02"]
[WhiteElo "2292"]
[BlackElo "2577"]
[Annotator "TA"]
[PlyCount "79"]
[EventDate "2023.02.03"]
[EventType "swiss"]
[EventCountry "NET"]
[SourceTitle "playchess.com"]
[Source "ChessBase"]
[SourceQuality "1"]
[TimeControl "600+2"]

{[%evp 9,79,8,4,8,17,-11,0,0,2,-3,0,-40,-22,-28,-16,-18,0,0,0,0,0,0,0,0,42,-18,139,105,136,29,58,49,855,825,997,838,1020,1015,1029,1012,1153,1159,1025,949,965,943,891,478,1072,672,854,814,820,821,815,804,882,884,827,843,1426,1520,29993,29994,29996,29997,29997,29997,29997,29996,29998,29993]} 1. d4 {[%emt 0:00:03]} e6 {[%emt 0:00:15]} 2. Nf3 {[%emt 0:00:25]} Nf6 {[%emt 0:00:07]} 3. Bf4 {[%emt 0:00:01]} d5 {[%emt 0:00:29]} 4. e3 {[%emt 0:00:01]} Bd6 {[%emt 0:00:00]} 5. Nbd2 {[%emt 0:00:01]} O-O {[%emt 0:00:01]} 6. c3 {[%emt 0:00:02] D02: 1 d4 d5 2 Nf3 sidelines, including 2...Nf6 3 g3 and 2...Nf6 3 Bf4.} b6 {[%emt 0:00:02]} 7. h4 {[%emt 0:00:01]} Bxf4 {[%emt 0:00:46]} 8. exf4 {[%emt 0:00:03] The position is equal.} c5 {[%emt 0:00:00]} 9. h5 {[%emt 0:00:08]} h6 {[%emt 0:00:05] [#]} 10. Nb3 $146 {[%emt 0:00:34]} ({Predecessor:} 10. Ne5 Nfd7 11. Ndf3 cxd4 12. cxd4 f6 13. Ng6 Re8 14. Rc1 Ba6 15. Bxa6 Nxa6 16. Qd3 {½-½ Tabatabaei,M (2645)-Sarana,A (2675) Chess.com Rapid Wk13 Swiss 2022 (4)}) 10... Qd6 {[%emt 0:00:14]} 11. Ne5 {[%emt 0:00:03]} a5 {[%emt 0:00:09]} 12. a4 {[%emt 0:00:08]} Nc6 {[%emt 0:00:54]} 13. Bb5 {[%emt 0:01:38]} Ne7 {[%emt 0:00:04]} 14. g4 {[%emt 0:00:32]} cxd4 {[%emt 0:00:49]} 15. Nxd4 {[%emt 0:00:02]} Ne4 {[%emt 0:00:34]} 16. Qf3 {[%emt 0:02:56]} Bb7 {[%emt 0:02:31]} (16... f6 $5 {[%cal Rf6e5]} 17. Ng6 Nxg6 18. hxg6 e5 $11) 17. Qe3 {[%emt 0:00:23]} (17. O-O-O $14) 17... Ba6 $2 {[%emt 0:01:31]} (17... f6 $1 $11 18. Ng6 e5 19. Nxe7+ (19. Nxf8 exd4 20. cxd4 Rxf8 $17) 19... Qxe7) 18. f3 {[%emt 0:00:52]} Nc5 {[%emt 0:00:02]} 19. g5 {[%emt 0:00:13] White is more active.} (19. O-O-O $16) 19... hxg5 {[%emt 0:00:04]} 20. h6 $1 $36 {[%emt 0:01:11][%cal Bh5h6,Bh6h7][%mdl 2080] hxg7 is the strong threat. White has good play.} gxf4 $2 {[%emt 0:00:06][%mdl 8192] Loses the game.} (20... Bxb5 $14 21. Nxb5 Qb8 22. hxg7 (22. fxg5 $2 Nf5 $19) 22... Kxg7) 21. Qxf4 $18 {[%emt 0:00:04]} f6 {[%emt 0:00:55]} 22. h7+ {[%emt 0:00:18]} ({Less strong is} 22. hxg7 Qxe5+ 23. Qxe5 fxe5 $16) 22... Kh8 {[%emt 0:00:03] [#]} 23. Nf7+ $1 {[%emt 0:00:00][%mdl 576] Discovered Attack} Rxf7 {[%emt 0:00:01]} 24. Qxd6 {[%emt 0:00:01]} e5 {[%emt 0:00:07]} 25. Qxb6 {[%emt 0:00:20]} Bxb5 {[%emt 0:00:10]} 26. Qxb5 {[%emt 0:00:18]} Rc8 {[%emt 0:00:05]} 27. Ne2 {[%emt 0:00:09]} Nf5 {[%emt 0:00:03]} 28. Kf2 {[%emt 0:00:16][%cal Be1f2,Bf2g2,Bg2h2][%mdl 32]} e4 {[%emt 0:00:01]} (28... Nd6 $142 29. Qxa5 Nc4) 29. Nd4 {[%emt 0:00:02]} Nd3+ {[%emt 0:00:02]} 30. Kg2 {[%emt 0:00:04]} Ne3+ {[%emt 0:00:02]} 31. Kh2 {[%emt 0:00:02]} f5 {[%emt 0:00:04] [#]} 32. Rae1 $1 {[%emt 0:00:04]} f4 {[%emt 0:00:07] [#]} (32... Nxe1 33. Rxe1) 33. Rxe3 $1 {[%emt 0:00:03]} fxe3 {[%emt 0:00:00]} 34. Qxd5 {[%emt 0:00:00]} Rf6 {[%emt 0:00:01]} 35. Nf5 {[%emt 0:00:04] White wants to mate with Ne7.} ({Weaker is} 35. fxe4 Rh6+ 36. Kg1 Rg6+ 37. Kf1 Rf6+ 38. Ke2 Nf4+ 39. Kxe3 Nxd5+ 40. exd5 Rc4 $16) 35... Rg6 {[%emt 0:00:45]} 36. Ne7 {[%emt 0:00:02] White mates.} Rh6+ {[%emt 0:00:01]} 37. Kg3 {[%emt 0:00:01]} Kxh7 {[%emt 0:00:04]} 38. Qxe4+ {[%emt 0:00:04]} Kh8 {[%emt 0:00:01]} 39. Rxh6+ {[%emt 0:00:01]} gxh6 {[%emt 0:00:00]} 40. Nxc8 {[%emt 0:00:02] Weighted Error Value: White=0.99/Black=0.31} 1-0

[Event "CCT Airthings Masters Play-In 2023"]
[Site "Online"]
[Date "2023.02.03"]
[Round "3"]
[White "SharapovEvgeny"]
[Black "GroovyKettle"]
[Result "1-0"]
[ECO "C48"]
[WhiteElo "2115"]
[BlackElo "2495"]
[Annotator "TA"]
[PlyCount "111"]
[EventDate "2023.02.03"]
[EventType "swiss"]
[EventCountry "NET"]
[SourceTitle "playchess.com"]
[Source "ChessBase"]
[SourceQuality "1"]
[TimeControl "600+2"]

{[%evp 9,111,15,13,6,16,0,35,29,30,23,39,16,37,45,54,15,16,46,88,86,91,91,101,97,164,152,132,128,210,214,221,214,214,215,214,214,241,228,272,246,246,246,243,221,260,260,260,260,260,267,370,379,372,358,458,437,468,436,736,735,1242,1236,1207,986,1300,1261,1237,1187,1390,1345,1908,1779,1942,1756,5173,1156,1422,835,812,797,1278,1243,1143,1144,1713,1703,2458,2287,4837,4245,29976,29977,29977,29978,29978,29978,29978,29978,29986,29987,29988,29989,29989,29990]} 1. e4 {[%emt 0:00:05]} e5 {[%emt 0:00:03]} 2. Nf3 {[%emt 0:00:01]} Nc6 {[%emt 0:00:01]} 3. Nc3 {[%emt 0:00:02]} Nf6 {[%emt 0:00:05]} 4. Bb5 {[%emt 0:00:01]} Bd6 {[%emt 0:00:08]} 5. O-O {[%emt 0:00:02]} O-O {[%emt 0:00:01]} 6. Re1 {[%emt 0:00:02] C48: Four Knights: 4 Bb5, replies other than 4...Bb4.} Re8 {[%emt 0:00:00]} 7. h3 {[%emt 0:00:01]} Bf8 {[%emt 0:00:01]} 8. d4 {[%emt 0:00:05] [#] White is slightly better.} exd4 $146 {[%emt 0:00:05]} ({Predecessor:} 8... Nxd4 9. Nxd4 exd4 10. Qxd4 a6 11. Bf1 h6 12. e5 d6 13. Bxh6 dxe5 14. Qxd8 Rxd8 {1-0 Chandreyee,H (1898)-Wiwatanadate,P (2037) Asia-ch Amateur 2015 (6)}) 9. Nxd4 {[%emt 0:00:01]} a6 {[%emt 0:00:08]} 10. Nxc6 {[%emt 0:00:37]} bxc6 {[%emt 0:00:11]} (10... dxc6 {simplifies} 11. Qxd8 Rxd8 12. Bd3 Nd7) 11. Ba4 {[%emt 0:00:07]} Bd6 {[%emt 0:00:17]} 12. Bg5 {[%emt 0:00:23]} (12. f4 $5 {[%cal Re4e5]}) 12... h6 {[%emt 0:00:04]} 13. Bh4 {[%emt 0:00:04]} g5 {[%emt 0:00:09]} 14. Bg3 {[%emt 0:00:01]} Bxg3 {[%emt 0:00:06]} 15. fxg3 {[%emt 0:00:01]} Qe7 {[%emt 0:00:11]} 16. Qf3 {[%emt 0:00:25]} Qe5 {[%emt 0:00:13]} (16... Kg7 $16) 17. Rf1 $18 {[%emt 0:00:45][%cal Be1f1,Bf1f2,Bf2f6][%mdl 32]} Kg7 {[%emt 0:00:04] [#]} 18. Rf2 $1 {[%emt 0:00:03] Raf1 would be deadly.} a5 {[%emt 0:01:04]} (18... Qd4 $2 19. Raf1 Re6 20. Bb3 $18) (18... Rf8 $16) 19. Raf1 {[%emt 0:00:35][%cal Rf3f6]} Ba6 {[%emt 0:01:01]} 20. Qxf6+ {[%emt 0:00:09]} Qxf6 {[%emt 0:00:01]} 21. Rxf6 {[%emt 0:00:01]} Bxf1 {[%emt 0:00:00]} 22. Rxf1 {[%emt 0:00:01]} Rab8 {[%emt 0:00:00]} 23. Bb3 {[%emt 0:00:04]} Re7 {[%emt 0:00:03]} 24. Rf5 {[%emt 0:00:12]} Ra8 {[%emt 0:00:01]} 25. Kf2 {[%emt 0:00:05]} f6 {[%emt 0:00:03]} 26. a4 {[%emt 0:00:31]} Re5 {[%emt 0:00:03]} 27. Rxe5 {[%emt 0:00:05]} fxe5 {[%emt 0:00:01]} 28. Nd1 {[%emt 0:00:01]} Rb8 {[%emt 0:00:06]} 29. Ne3 {[%emt 0:00:07]} Rb4 {[%emt 0:00:02]} 30. Nc4 {[%emt 0:00:12]} Kf6 {[%emt 0:00:17]} 31. Kf3 {[%emt 0:00:23]} d5 {[%emt 0:00:36]} 32. Nxa5 {[%emt 0:00:02]} Rxe4 {[%emt 0:00:25]} 33. Nxc6 {[%emt 0:00:06]} Re1 {[%emt 0:01:27]} (33... Ke6 $142 34. a5 Re1) 34. Bxd5 {[%emt 0:00:06]} Ra1 {[%emt 0:00:02]} 35. a5 {[%emt 0:00:21]} h5 {[%emt 0:00:42]} 36. Be4 {[%emt 0:00:10]} Ra4 {[%emt 0:00:08]} 37. b4 {[%emt 0:00:04]} Ke6 {[%emt 0:00:06]} 38. g4 {[%emt 0:00:41]} hxg4+ {[%emt 0:00:16]} 39. Kxg4 {[%emt 0:00:07]} Ra3 {[%emt 0:00:01]} 40. Kxg5 {[%emt 0:00:21]} Rg3+ {[%emt 0:00:06]} 41. Kh4 {[%emt 0:00:02]} Re3 {[%emt 0:00:00]} 42. Bf3 {[%emt 0:00:18] [#] Threatening mate with a6.} e4 {[%emt 0:00:20]} 43. Bg4+ {[%emt 0:00:04]} Kd6 {[%emt 0:00:01]} 44. Nd4 {[%emt 0:00:15] White wants to mate with Nf5+.} Kd5 {[%emt 0:00:05]} 45. Nf5 {[%emt 0:00:08]} Ra3 {[%emt 0:00:03]} 46. Kg5 {[%emt 0:00:04]} c5 {[%emt 0:00:14]} 47. bxc5 {[%emt 0:00:06]} Rxa5 {[%emt 0:00:00]} 48. h4 {[%emt 0:00:02][%cal Bh3h4,Bh4h5,Bh5h6][%mdl 32] Black must now prevent h5.} Rxc5 {[%emt 0:00:01]} 49. h5 {[%emt 0:00:01]} Ke6 {[%emt 0:00:05]} 50. h6 {[%emt 0:00:03] White mates.} Rc7 {[%emt 0:00:02]} 51. Ne3+ {[%emt 0:00:12]} Kf7 {[%emt 0:00:03]} 52. Bf5 {[%emt 0:00:05]} Rc5 {[%emt 0:00:11]} 53. Kf4 {[%emt 0:00:03]} Kf6 {[%emt 0:00:06]} 54. g4 {[%emt 0:00:01][%cal Bg2g4,Bg4g5,Bg5g6][%mdl 32]} Ra5 {[%emt 0:00:06]} 55. g5+ {[%emt 0:00:02]} Kf7 {[%emt 0:00:00]} 56. g6+ {[%emt 0:00:06] Weighted Error Value: White=0.08 (flawless) /Black=0.29 (precise)} 1-0

[Event "CCT Airthings Masters Play-In 2023"]
[Site "Online"]
[Date "2023.02.03"]
[Round "3"]
[White "Chan, Chak Man"]
[Black "Fighterman91"]
[Result "1/2-1/2"]
[ECO "D02"]
[WhiteElo "1862"]
[BlackElo "2359"]
[Annotator "NA"]
[PlyCount "165"]
[EventDate "2023.02.03"]
[EventType "swiss"]
[EventCountry "NET"]
[SourceTitle "playchess.com"]
[Source "ChessBase"]
[SourceQuality "1"]
[TimeControl "600+2"]

1. d4 {[%emt 0:00:03]} Nf6 {[%emt 0:00:04]} 2. Bf4 {[%emt 0:00:02]} d5 {[%emt 0:00:04]} 3. e3 {[%emt 0:00:01]} e6 {[%emt 0:00:02]} 4. Nf3 {[%emt 0:00:06]} c5 {[%emt 0:00:00]} 5. Nbd2 {[%emt 0:00:02]} Nc6 {[%emt 0:00:01]} 6. c3 {[%emt 0:00:04]} cxd4 {[%emt 0:00:00]} 7. exd4 {[%emt 0:00:03]} Nh5 {[%emt 0:00:01]} 8. Be3 {[%emt 0:00:48]} Bd6 {[%emt 0:00:01]} 9. Ne5 {[%emt 0:00:09]} g6 {[%emt 0:00:01]} 10. f4 {[%emt 0:00:01]} Qb6 {[%emt 0:00:47]} 11. Nd3 {[%emt 0:00:40]} f6 {[%emt 0:00:32]} 12. Be2 {[%emt 0:01:14]} Ng7 {[%emt 0:00:02]} 13. O-O {[%emt 0:00:02]} O-O {[%emt 0:00:01]} 14. Bf2 {[%emt 0:00:13]} Bd7 {[%emt 0:00:12]} 15. Kh1 {[%emt 0:00:33]} Qc7 {[%emt 0:00:03]} 16. g3 {[%emt 0:00:38]} e5 {[%emt 0:00:44]} 17. fxe5 {[%emt 0:00:09]} fxe5 {[%emt 0:00:00]} 18. dxe5 {[%emt 0:00:02]} Nxe5 {[%emt 0:00:00]} 19. Nxe5 {[%emt 0:00:01]} Bxe5 {[%emt 0:00:00]} 20. Nf3 {[%emt 0:00:04]} Bf6 {[%emt 0:00:58]} 21. Bd4 {[%emt 0:00:10]} Bxd4 {[%emt 0:00:38]} 22. Nxd4 {[%emt 0:00:18]} Bh3 {[%emt 0:00:28]} 23. Rxf8+ {[%emt 0:00:36]} Rxf8 {[%emt 0:00:00]} 24. Bf3 {[%emt 0:00:12]} Kh8 {[%emt 0:00:02]} 25. Bg2 {[%emt 0:00:47]} Bxg2+ {[%emt 0:00:10]} 26. Kxg2 {[%emt 0:00:00]} Qb6 {[%emt 0:00:21]} 27. Qe2 {[%emt 0:00:31]} Re8 {[%emt 0:00:19]} 28. Qf2 {[%emt 0:00:01]} Qd6 {[%emt 0:01:06]} 29. Rf1 {[%emt 0:00:15]} Qe7 {[%emt 0:00:14]} 30. Qf3 {[%emt 0:00:11]} Rd8 {[%emt 0:01:31]} 31. Qf6 {[%emt 0:00:42]} Qxf6 {[%emt 0:00:17]} 32. Rxf6 {[%emt 0:00:02]} Kg8 {[%emt 0:00:00]} 33. Kf3 {[%emt 0:00:25]} Rd7 {[%emt 0:00:20]} 34. g4 {[%emt 0:00:14]} Ne8 {[%emt 0:00:00]} 35. Re6 {[%emt 0:00:11]} Nd6 {[%emt 0:00:02]} 36. Kf4 {[%emt 0:00:11]} Kf7 {[%emt 0:00:16]} 37. Kg5 {[%emt 0:00:07]} Kg7 {[%emt 0:00:34]} 38. a4 {[%emt 0:00:28]} h6+ {[%emt 0:00:06]} 39. Kf4 {[%emt 0:00:01]} Nc4 {[%emt 0:00:09]} 40. Re2 {[%emt 0:00:24]} Rf7+ {[%emt 0:00:04]} 41. Kg3 {[%emt 0:00:00]} Nd6 {[%emt 0:00:06]} 42. Nf3 {[%emt 0:00:24]} Ne4+ {[%emt 0:00:03]} 43. Kg2 {[%emt 0:00:01]} Rf4 {[%emt 0:00:07]} 44. h3 {[%emt 0:00:01]} Kf6 {[%emt 0:00:02]} 45. Re3 {[%emt 0:00:07]} g5 {[%emt 0:00:36]} 46. Rd3 {[%emt 0:00:02]} Ke6 {[%emt 0:00:09]} 47. Nd4+ {[%emt 0:00:01]} Ke5 {[%emt 0:00:01]} 48. Nf3+ {[%emt 0:00:06]} Ke6 {[%emt 0:00:01]} 49. a5 {[%emt 0:00:04]} Nc5 {[%emt 0:00:10]} 50. Nd4+ {[%emt 0:00:03]} Ke5 {[%emt 0:00:01]} 51. Re3+ {[%emt 0:00:00]} Re4 {[%emt 0:00:01]} 52. Kf3 {[%emt 0:00:03]} Na4 {[%emt 0:00:06]} 53. b3 {[%emt 0:00:11]} Rxe3+ {[%emt 0:00:03]} 54. Kxe3 {[%emt 0:00:00]} Nxc3 {[%emt 0:00:01]} 55. Nf3+ {[%emt 0:00:02]} Kd6 {[%emt 0:00:01]} 56. Nd4 {[%emt 0:00:02]} Ke5 {[%emt 0:00:01]} 57. Nf3+ {[%emt 0:00:00]} Kd6 {[%emt 0:00:11]} 58. Nd4 {[%emt 0:00:01]} Kc5 {[%emt 0:00:04]} 59. Nf5 {[%emt 0:00:03]} Kb4 {[%emt 0:00:01]} 60. Nxh6 {[%emt 0:00:01]} Kxa5 {[%emt 0:00:01]} 61. Nf7 {[%emt 0:00:06]} Ne4 {[%emt 0:00:01]} 62. Kd4 {[%emt 0:00:02]} Kb4 {[%emt 0:00:02]} 63. Kxd5 {[%emt 0:00:00]} Nf2 {[%emt 0:00:02]} 64. Nxg5 {[%emt 0:00:02]} Kxb3 {[%emt 0:00:00]} 65. Kd4 {[%emt 0:00:04]} a5 {[%emt 0:00:01]} 66. Ke3 {[%emt 0:00:01]} Nd1+ {[%emt 0:00:05]} 67. Kd2 {[%emt 0:00:01]} Nf2 {[%emt 0:00:05]} 68. Ke3 {[%emt 0:00:05]} Nd1+ {[%emt 0:00:02]} 69. Kd2 {[%emt 0:00:00]} Nc3 {[%emt 0:00:01]} 70. Nf3 {[%emt 0:00:03]} a4 {[%emt 0:00:01]} 71. Nd4+ {[%emt 0:00:02]} Kb2 {[%emt 0:00:01]} 72. Nc2 {[%emt 0:00:02]} Ne4+ {[%emt 0:00:01]} 73. Kd3 {[%emt 0:00:00]} Nf2+ {[%emt 0:00:00]} 74. Kd2 {[%emt 0:00:01]} Ne4+ {[%emt 0:00:01]} 75. Kd3 {[%emt 0:00:02]} Nf2+ {[%emt 0:00:00]} 76. Kd2 {[%emt 0:00:00]} Nxh3 {[%emt 0:00:01]} 77. Ne3 {[%emt 0:00:07]} Nf2 {[%emt 0:00:01]} 78. Nc4+ {[%emt 0:00:03]} Kb1 {[%emt 0:00:04]} 79. Kc3 {[%emt 0:00:02]} b5 {[%emt 0:00:03]} 80. Na3+ {[%emt 0:00:01]} Ka2 {[%emt 0:00:01]} 81. Nxb5 {[%emt 0:00:01]} Nxg4 {[%emt 0:00:01]} 82. Kb4 {[%emt 0:00:00]} Ne5 {[%emt 0:00:01]} 83. Kxa4 {[%emt 0:00:01]} 1/2-1/2